bitfinex-derivatives/quotes_BTCF0:USTF0_20260118
["timestamp","ask_amount","ask_price","bid_price","bid_amount"]
[1768742533600,0.00015785,94989.0,94980.0,0.04288655]
[1768742533798,0.00015785,94989.0,94974.0,0.00933173]
[1768742534002,0.00015785,94989.0,94980.0,0.04288655]
[1768742534500,0.00015785,94989.0,94983.0,0.04288655]
[1768742534700,0.00015785,94989.0,94979.0,0.00933173]
[1768742534888,0.00015785,94989.0,94983.0,0.04288655]
[1768742535290,0.00015785,94989.0,94985.0,0.04288655]
[1768742535488,0.03505594,95005.0,94989.0,0.00933173]
[1768742535690,0.0948,95004.0,94990.0,0.00933173]
[1768742537905,0.02189934,95003.0,94990.0,0.00933173]
[1768742538104,0.02189934,95002.0,94990.0,0.00933173]
[1768742538308,0.02189934,95001.0,94990.0,0.00933173]
[1768742538493,0.02189934,95000.0,94990.0,0.00933173]
[1768742538697,0.02189934,94999.0,94990.0,0.00933173]
[1768742538993,0.02189934,94998.0,94990.0,0.00933173]
[1768742539193,0.02189934,94997.0,94990.0,0.00933173]
[1768742539402,0.02189934,94996.0,94990.0,0.00933173]
[1768742539606,0.02189934,94995.0,94990.0,0.00933173]
[1768742539791,0.02189934,94994.0,94990.0,0.00933173]
[1768742539997,0.02189934,94993.0,94990.0,0.00933173]
[1768742540192,0.02189934,94992.0,94985.0,0.11370009]
[1768742540398,0.02189934,94991.0,94985.0,0.12303182]
[1768742540607,0.01053,95003.0,94986.0,0.00933173]
[1768742540794,0.0948,95002.0,94986.0,0.00933173]
[1768742547411,0.00946317,94996.0,94977.0,0.00015785]
[1768742547614,0.08365186,94993.0,94977.0,0.00015785]
[1768742547902,0.00759736,94992.0,94977.0,0.00015785]
[1768742548097,0.09124922,94991.0,94977.0,0.00015785]
[1768742548801,0.08365186,94987.0,94977.0,0.00015785]
[1768742549699,0.08365186,94987.0,94967.0,0.00995106]
[1768742551109,0.08365186,94987.0,94969.0,0.01226762]
[1768742552696,0.02139828,94986.0,94969.0,0.00231656]
[1768742552896,0.0820064,94984.0,94969.0,0.00231656]
[1768742553112,0.0894844,94982.0,94969.0,0.00231656]
[1768742553308,0.0820064,94980.0,94969.0,0.00231656]
[1768742561710,0.02138301,94979.0,94969.0,0.00231656]
[1768742561904,0.0213834,94978.0,94969.0,0.00231656]
[1768742562105,0.07804164,94984.0,94969.0,0.00231656]
[1768742562304,0.0778837,94982.0,94969.0,0.00231656]
[1768742562611,0.02138344,94981.0,94969.0,0.00231656]
[1768742562812,0.02138344,94980.0,94969.0,0.00231656]
[1768742563003,0.02138344,94979.0,94969.0,0.00231656]
[1768742563202,0.02138344,94978.0,94969.0,0.00231656]
[1768742563411,0.0778837,94981.0,94969.0,0.00231656]
[1768742563614,0.02138122,94980.0,94969.0,0.00231656]
[1768742563805,0.02138122,94979.0,94969.0,0.00231656]
[1768742564005,0.02138122,94978.0,94969.0,0.00231656]
[1768742564206,0.07788073,94980.0,94969.0,0.00231656]
[1768742564409,0.02138027,94979.0,94969.0,0.00231656]
[1768742564614,0.02138027,94978.0,94969.0,0.00231656]
[1768742564912,0.07788073,94980.0,94969.0,0.00231656]
[1768742565114,0.02138,94979.0,94969.0,0.00231656]
[1768742565314,0.02138,94978.0,94969.0,0.00231656]
[1768742565499,0.00015794,94984.0,94969.0,0.00231656]
[1768742565700,0.02137858,94983.0,94969.0,0.01184013]
[1768742565904,0.02137858,94982.0,94969.0,0.01184013]
[1768742566112,0.02137858,94981.0,94969.0,0.01184013]
[1768742566312,0.02137858,94980.0,94969.0,0.01184013]
[1768742566614,0.00015794,94984.0,94969.0,0.01184013]
[1768742566812,0.02137822,94983.0,94969.0,0.01184013]
[1768742567015,0.07773572,94994.0,94975.0,0.11844027]
[1768742567213,0.0948,94993.0,94977.0,0.00952357]
[1768742567406,0.08826672,94998.0,94978.0,0.00952357]
[1768742567613,0.0948,94997.0,94978.0,0.00952357]
[1768742567810,0.17203758,94997.0,94978.0,0.00952357]
[1768742568011,0.07723758,94996.0,94978.0,0.00952357]
[1768742575816,0.07723758,94996.0,94972.0,0.12348283]
[1768742576011,0.07723758,94996.0,94973.0,0.00915542]
[1768742577219,0.08440146,94994.0,94973.0,0.00915542]
[1768742577917,0.07703373,94992.0,94973.0,0.00915542]
[1768742578317,0.08426342,94988.0,94970.0,0.0948]
[1768742579108,0.09833731,94987.0,94970.0,0.0948]
[1768742579312,0.02130358,94986.0,94970.0,0.0948]
[1768742580817,0.02130358,94986.0,94971.0,0.00915542]
[1768742581116,0.02130358,94985.0,94971.0,0.00915542]
[1768742581309,0.02130358,94984.0,94971.0,0.00915542]
[1768742581622,0.02130358,94983.0,94971.0,0.00915542]
[1768742581917,0.02130358,94982.0,94971.0,0.00915542]
[1768742582219,0.07432495,94991.0,94971.0,0.00915542]
[1768742582419,0.02124986,94990.0,94971.0,0.00915542]
[1768742582609,0.02124986,94989.0,94971.0,0.00915542]
[1768742582808,0.02124986,94988.0,94971.0,0.00915542]
[1768742583009,0.02124986,94987.0,94971.0,0.00915542]
[1768742583214,0.02124986,94986.0,94971.0,0.00915542]
[1768742583416,0.02124986,94985.0,94971.0,0.00915542]
[1768742583704,0.02124986,94984.0,94971.0,0.00915542]
[1768742583904,0.02124986,94983.0,94971.0,0.00915542]
[1768742584108,0.02124986,94982.0,94971.0,0.00915542]
[1768742584313,0.07289762,94990.0,94971.0,0.00915542]
[1768742584513,0.0212499,94989.0,94971.0,0.00915542]
[1768742584713,0.0212499,94988.0,94971.0,0.00915542]
[1768742585015,0.0212499,94987.0,94971.0,0.00915542]
[1768742585211,0.0948,94997.0,94979.0,0.00915542]
[1768742585714,0.105331,94997.0,94979.0,0.00915542]
[1768742585917,0.17456515,94997.0,94979.0,0.00915542]
[1768742586416,0.06923415,94996.0,94979.0,0.00915542]
[1768742590525,0.06923415,94996.0,94973.0,0.01968842]
[1768742590825,0.06923415,94996.0,94974.0,0.00915542]
[1768742591326,0.06923415,94996.0,94975.0,0.00915542]
[1768742591517,20.0,94999.0,94979.0,0.00915542]
[1768742591716,20.0,94999.0,94970.0,0.0948]
[1768742591717,20.0,94999.0,94983.0,0.00915542]
[1768742591918,20.0,94999.0,94984.0,0.11294883]
[1768742592112,20.0,94999.0,94985.0,0.00915542]
[1768742595229,20.0,94999.0,94985.0,0.12210425]
[1768742595428,20.0,94999.0,94986.0,0.00915542]
[1768742595618,20.0,94999.0,94987.0,0.11294883]
[1768742595813,20.0,94999.0,94988.0,0.00915542]
[1768742596420,20.0,94999.0,94988.0,0.12210425]
[1768742596621,20.0,94999.0,94989.0,0.00915542]
[1768742597432,0.02114242,94998.0,94989.0,0.00915542]
[1768742597632,20.0,94999.0,94989.0,0.00915542]
[1768742597930,0.02114285,94998.0,94989.0,0.00915542]
[1768742598134,20.0,94999.0,94989.0,0.00915542]
[1768742598336,0.02114019,94998.0,94981.0,0.0948]
[1768742598635,20.0,94999.0,94984.0,0.010532]
[1768742598834,0.02114019,94998.0,94984.0,0.010532]
[1768742599036,20.0,94999.0,94984.0,0.010532]
[1768742600327,20.0,94999.0,94986.0,0.01968742]
[1768742600528,20.0,94999.0,94987.0,0.00915542]
[1768742600733,20.0,94999.0,94988.0,0.11294883]
[1768742601543,20.0,94999.0,94989.0,0.01968742]
[1768742601739,19.456824,94999.0,94992.0,0.010531]
[1768742601944,18.55752367,94999.0,94994.0,0.01968642]
[1768742602139,17.93991467,94999.0,94994.0,0.01968642]
[1768742602542,17.37508667,94999.0,94995.0,0.0948]
[1768742604349,17.37508667,94999.0,94995.0,0.0958]
[1768742605543,16.84876667,94999.0,94995.0,0.0958]
[1768742605752,16.83221298,94999.0,94995.0,0.0958]
[1768742606950,16.83221298,94999.0,94995.0,0.0948]
[1768742607247,16.83221298,94999.0,94995.0,0.0958]
[1768742611851,16.28511069,94999.0,94995.0,0.001]
[1768742612050,0.00918719,94993.0,94984.0,0.6352]
[1768742612245,0.00918719,94993.0,94985.0,0.0948]
[1768742612554,0.1186913,94987.0,94976.0,0.15765176]
[1768742612752,0.12787849,94987.0,94974.0,0.0948]
[1768742612953,0.12787849,94987.0,94975.0,0.15765176]
[1768742613254,0.12787849,94987.0,94974.0,0.0948]
[1768742613457,1.30492,95007.0,94983.0,0.12212592]
[1768742613848,1.31410719,95007.0,94983.0,0.12212592]
[1768742614048,0.52863569,95004.0,94983.0,0.12212592]
[1768742614445,0.53782288,95004.0,94983.0,0.12212592]
[1768742614650,0.00918719,95003.0,94978.0,0.010533]
[1768742614863,0.00918719,95001.0,94978.0,0.010533]
[1768742615050,0.00918719,95001.0,94979.0,0.1584524]
[1768742615251,0.00918719,95001.0,94980.0,0.010533]
[1768742615453,0.12787849,94998.0,94980.0,0.010533]
[1768742616465,0.11332673,94990.0,94976.0,0.010533]
[1768742616653,0.11332673,94990.0,94974.0,0.23791228]
[1768742616654,0.11332673,94990.0,94974.0,0.200088]
[1768742616854,0.52863569,95004.0,94977.0,0.15891012]
[1768742616855,0.11332673,94988.0,94977.0,0.15891012]
[1768742617162,0.00953952,94989.0,94975.0,0.15891012]
[1768742617458,0.11332673,94992.0,94975.0,0.1581614]
[1768742619667,0.010531,94999.0,94975.0,0.1581614]
[1768742619668,0.11332673,94990.0,94976.0,0.0948]
[1768742619857,0.11332673,94990.0,94975.0,0.1581614]
[1768742619858,0.12286625,94990.0,94975.0,0.1581614]
[1768742620164,0.12286625,94990.0,94977.0,0.15716684]
[1768742620366,0.12286625,94990.0,94976.0,0.0948]
[1768742623861,0.12286625,94990.0,94976.0,0.13262428]
[1768742624061,0.12286625,94990.0,94976.0,0.0948]
[1768742624264,0.12286625,94990.0,94976.0,0.13262428]
[1768742627063,0.00015794,94992.0,94976.0,0.13262428]
[1768742627372,0.52647794,94992.0,94976.0,0.13262428]
[1768742627667,0.00015794,94992.0,94976.0,0.13262428]
[1768742627870,0.52647794,94992.0,94976.0,0.13262428]
[1768742628669,0.52632,94991.0,94976.0,0.13262428]
[1768742628871,0.52647794,94992.0,94976.0,0.13262428]
[1768742629576,0.00015794,94992.0,94976.0,0.13262428]
[1768742629873,0.52632,94991.0,94976.0,0.13262428]
[1768742630069,0.00015794,94992.0,94976.0,0.13262428]
[1768742630373,0.52632,94991.0,94976.0,0.13262428]
[1768742631266,0.00015794,94992.0,94976.0,0.13262428]
[1768742631465,0.52632,94991.0,94976.0,0.13262428]
[1768742631976,0.52632,94990.0,94976.0,0.13262428]
[1768742632177,0.52632,94991.0,94976.0,0.13262428]
[1768742632676,0.52632,94990.0,94976.0,0.13262428]
[1768742633777,0.52632,94989.0,94976.0,0.13262428]
[1768742633967,0.52632,94990.0,94976.0,0.13262428]
[1768742634468,0.52632,94989.0,94976.0,0.13262428]
[1768742634670,0.52632,94990.0,94976.0,0.13262428]
[1768742635070,0.52632,94989.0,94976.0,0.13262428]
[1768742635267,0.52632,94990.0,94976.0,0.13262428]
[1768742635872,0.52632,94988.0,94976.0,0.13262428]
[1768742636172,0.00015794,94992.0,94976.0,0.13262428]
[1768742636473,0.52632,94989.0,94976.0,0.0948]
[1768742636973,0.52632,94988.0,94976.0,0.0948]
[1768742637168,0.52632,94989.0,94976.0,0.0948]
[1768742637875,0.00015794,94992.0,94976.0,0.0948]
[1768742638062,0.52632,94989.0,94976.0,0.0948]
[1768742638465,0.52632,94987.0,94976.0,0.0948]
[1768742638666,0.52632,94989.0,94976.0,0.0948]
[1768742639070,0.52632,94988.0,94976.0,0.0948]
[1768742639276,0.52632,94989.0,94976.0,0.0948]
[1768742639571,0.00015794,94992.0,94976.0,0.0948]
[1768742639876,0.52632,94988.0,94976.0,0.0948]
[1768742640380,0.52632,94986.0,94976.0,0.0948]
[1768742640574,0.52632,94988.0,94976.0,0.0948]
[1768742640978,0.52632,94986.0,94976.0,0.0948]
[1768742641177,0.52632,94988.0,94976.0,0.0948]
[1768742641682,0.52632,94986.0,94976.0,0.0948]
[1768742641890,0.52632,94988.0,94976.0,0.0948]
[1768742642384,0.52632,94985.0,94976.0,0.0948]
[1768742642572,0.52632,94988.0,94976.0,0.0948]
[1768742643070,0.52632,94985.0,94976.0,0.0948]
[1768742643270,0.52632,94987.0,94976.0,0.0948]
[1768742643570,0.52632,94985.0,94976.0,0.0948]
[1768742643773,0.52632,94987.0,94976.0,0.0948]
[1768742643974,0.52632,94987.0,94973.0,0.00909941]
[1768742644170,0.52632,94986.0,94974.0,0.0948]
[1768742644370,0.52632,94989.0,94975.0,0.1582513]
[1768742644577,0.52632,94988.0,94974.0,0.2530513]
[1768742644877,0.52632,94988.0,94974.0,0.0948]
[1768742645077,0.52632,94986.0,94975.0,0.15889738]
[1768742645279,0.52632,94988.0,94975.0,0.15889738]
[1768742645481,0.52632,94987.0,94975.0,0.15889738]
[1768742645975,0.52632,94985.0,94975.0,0.15889738]
[1768742646278,0.52632,94987.0,94975.0,0.15889738]
[1768742646678,0.52632,94984.0,94975.0,0.15889738]
[1768742646874,0.52632,94987.0,94975.0,0.15889738]
[1768742647069,0.00015794,94992.0,94975.0,0.15889738]
[1768742647269,0.52632,94987.0,94975.0,0.15889738]
[1768742647682,0.52632,94984.0,94975.0,0.15889738]
[1768742647876,0.52632,94986.0,94975.0,0.15889738]
[1768742648570,0.00015794,94992.0,94975.0,0.15889738]
[1768742649271,0.11784562,94994.0,94975.0,0.27958633]
[1768742650080,0.00953952,94996.0,94976.0,0.11015595]
[1768742650380,0.00953952,94996.0,94977.0,0.0948]
[1768742651081,0.11784562,95005.0,94984.0,0.12008742]
[1768742651376,0.02128462,95003.0,94986.0,0.11015595]
[1768742651578,0.02128462,95002.0,94986.0,0.11015595]
[1768742651778,0.02128462,95001.0,94986.0,0.11015595]
[1768742651972,0.02128462,95000.0,94986.0,0.11015595]
[1768742652170,0.02128462,94999.0,94986.0,0.11015595]
[1768742652480,0.02128462,94998.0,94986.0,0.11015595]
[1768742652681,0.11784562,95005.0,94986.0,0.11015595]
[1768742652879,0.02128217,95003.0,94986.0,0.11015595]
[1768742653078,0.02128217,95002.0,94986.0,0.11015595]
[1768742653279,0.02128217,95001.0,94986.0,0.12008742]
[1768742653480,0.02128217,95000.0,94986.0,0.12008742]
[1768742653777,0.02128217,94999.0,94986.0,0.12008742]
[1768742653980,0.11784562,95006.0,94986.0,0.12008742]
[1768742654181,0.0212805,95003.0,94986.0,0.12008742]
[1768742654382,0.0212805,95002.0,94986.0,0.12008742]
[1768742654680,0.16397904,95009.0,94990.0,0.12008742]
[1768742654877,0.16397904,95007.0,94991.0,0.0948]
[1768742655180,0.01053,95005.0,94991.0,0.0948]
[1768742655680,0.16397904,95003.0,94991.0,0.0948]
[1768742656076,0.16397904,95002.0,94991.0,0.0948]
[1768742656277,0.16397904,95003.0,94991.0,0.0948]
[1768742656782,0.16397904,95002.0,94991.0,0.0948]
[1768742657173,0.16397904,95001.0,94991.0,0.0948]
[1768742657382,0.16397904,95002.0,94991.0,0.0948]
[1768742657578,0.06553492,95003.0,94991.0,0.0948]
[1768742657781,0.16397904,95001.0,94989.0,0.00015794]
[1768742658083,0.16397904,95002.0,94989.0,0.09495794]
[1768742659586,0.06553492,95003.0,94989.0,0.09495794]
[1768742659786,0.16397904,95002.0,94989.0,0.09495794]
[1768742660885,0.16397904,95001.0,94989.0,0.09495794]
[1768742661379,0.16397904,95000.0,94989.0,0.09495794]
[1768742661578,0.16397904,95002.0,94989.0,0.09495794]
[1768742661779,0.06553492,95003.0,94989.0,0.09495794]
[1768742661982,0.16397904,95001.0,94989.0,0.09495794]
[1768742662486,0.16397904,95000.0,94989.0,0.09495794]
[1768742662686,0.16397904,95001.0,94989.0,0.09495794]
[1768742663088,0.16397904,95000.0,94989.0,0.09495794]
[1768742663291,0.16397904,95001.0,94989.0,0.09495794]
[1768742663789,0.16397904,95000.0,94989.0,0.09495794]
[1768742664087,0.16397904,95001.0,94989.0,0.09495794]
[1768742664786,0.16397904,95000.0,94989.0,0.09495794]
[1768742664980,0.16397904,95001.0,94989.0,0.09495794]
[1768742665776,0.06553492,95003.0,94989.0,0.09495794]
[1768742665981,0.16397904,95000.0,94989.0,0.09495794]
[1768742666687,0.18516403,94999.0,94989.0,0.09727401]
[1768742666883,0.02118499,94998.0,94989.0,0.09727401]
[1768742667083,0.02118499,94997.0,94989.0,0.09727401]
[1768742667284,0.16397904,94999.0,94989.0,0.09727401]
[1768742667583,0.02118513,94998.0,94989.0,0.09727401]
[1768742667785,0.02118513,94997.0,94989.0,0.09727401]
[1768742668083,0.16397904,94998.0,94989.0,0.09727401]
[1768742668287,0.02118524,94997.0,94989.0,0.09727401]
[1768742668490,0.02118524,94996.0,94989.0,0.09727401]
[1768742668679,0.16397904,94998.0,94989.0,0.09727401]
[1768742668878,0.02118526,94997.0,94989.0,0.09727401]
[1768742669080,0.02118526,94996.0,94989.0,0.09727401]
[1768742669278,0.06553492,95003.0,94989.0,0.09727401]
[1768742669589,0.16397904,95000.0,94989.0,0.09727401]
[1768742669785,0.06553492,95003.0,94989.0,0.09727401]
[1768742669979,0.16397904,94999.0,94989.0,0.09727401]
[1768742670375,0.16397904,94997.0,94989.0,0.09727401]
[1768742670579,0.16397904,94999.0,94989.0,0.09727401]
[1768742671078,0.16397904,94997.0,94989.0,0.09727401]
[1768742671388,0.16397904,94999.0,94989.0,0.09727401]
[1768742671588,0.0637249,95004.0,94989.0,0.09727401]
[1768742671894,0.16397904,94999.0,94989.0,0.09727401]
[1768742672278,0.16397904,94997.0,94989.0,0.09727401]
[1768742672479,0.16397904,94999.0,94989.0,0.09727401]
[1768742672978,0.16397904,94997.0,94989.0,0.09727401]
[1768742673180,0.16397904,94999.0,94989.0,0.09727401]
[1768742673593,0.0637249,95004.0,94989.0,0.09727401]
[1768742673782,0.16397904,94999.0,94989.0,0.09727401]
[1768742674185,0.16397904,94996.0,94989.0,0.09727401]
[1768742674387,0.16397904,94999.0,94989.0,0.09727401]
[1768742674991,0.16397904,94996.0,94989.0,0.09727401]
[1768742675193,0.16397904,94999.0,94989.0,0.09727401]
[1768742675391,0.16397904,95000.0,94989.0,0.09727401]
[1768742675686,0.16397904,94999.0,94989.0,0.09727401]
[1768742676084,0.16397904,94996.0,94989.0,0.09727401]
[1768742676284,0.16397904,94998.0,94989.0,0.09727401]
[1768742676685,0.16397904,94995.0,94989.0,0.09727401]
[1768742676890,0.16397904,94998.0,94989.0,0.09727401]
[1768742677393,0.16397904,94995.0,94989.0,0.09727401]
[1768742677593,0.16397904,94998.0,94989.0,0.09727401]
[1768742678087,0.16397904,94995.0,94989.0,0.09727401]
[1768742678283,0.16397904,94998.0,94989.0,0.00247401]
[1768742678594,0.16397904,94998.0,94989.0,0.09727401]
[1768742678786,0.16397904,94995.0,94989.0,0.09727401]
[1768742678986,0.16397904,94998.0,94989.0,0.09727401]
[1768742679185,0.16397904,94997.0,94989.0,0.09727401]
[1768742679592,0.16397904,94994.0,94989.0,0.09727401]
[1768742679792,0.01053,95004.0,94989.0,0.09727401]
[1768742683888,0.06285952,95006.0,94989.0,0.09727401]
[1768742684802,0.01053,95005.0,94989.0,0.09727401]
[1768742691609,0.01053,95005.0,94989.0,0.10683721]
[1768742692292,0.07312035,95009.0,94989.0,0.22558009]
[1768742692497,0.01053,95005.0,94989.0,0.22558009]
[1768742694213,0.01053,95005.0,94990.0,0.00956553]
[1768742697409,0.01053,95008.0,94990.0,0.12830841]
[1768742697610,0.06328294,95009.0,94990.0,0.12830841]
[1768742698512,0.01053,95003.0,94990.0,0.12830841]
[1768742699094,0.01053,95006.0,94990.0,0.12830841]
[1768742700208,0.01053,95004.0,94990.0,0.12830841]
[1768742702401,0.01053,95003.0,94990.0,0.12830841]
[1768742702809,0.06328294,95009.0,94990.0,0.12830841]
[1768742703205,0.010531,94998.0,94990.0,0.12830841]
[1768742703608,0.01053,95001.0,94990.0,0.12830841]
[1768742704806,0.01053,95004.0,94991.0,0.00956553]
[1768742706709,0.01053,95004.0,94984.0,0.00231618]
[1768742706710,0.06213688,94989.0,94969.0,0.00231656]
[1768742707017,0.010533,94982.0,94969.0,0.00231656]
[1768742707204,0.02196533,94981.0,94970.0,0.0948]
[1768742707409,0.03249833,94980.0,94969.0,0.00231656]
[1768742707605,0.02194705,94979.0,94969.0,0.09711656]
[1768742707912,0.06184559,94981.0,94969.0,0.09711656]
[1768742708114,0.02194704,94980.0,94969.0,0.09711656]
[1768742708415,0.06184559,94981.0,94969.0,0.09711656]
[1768742708712,0.02193913,94980.0,94969.0,0.09711656]
[1768742708915,0.010533,94980.0,94969.0,0.09711656]
[1768742710214,0.010533,94980.0,94965.0,0.0948]
[1768742718013,0.010533,94980.0,94965.0,0.10436553]
[1768742719509,0.010533,94980.0,94965.0,0.00956553]
[1768742719711,0.05167302,94970.0,94955.0,0.29506369]
[1768742719911,0.05167302,94970.0,94952.0,0.00956553]
[1768742720116,0.010534,94966.0,94952.0,0.00956553]
[1768742720718,0.010534,94966.0,94952.0,0.01456553]
[1768742721113,0.06220702,94966.0,94952.0,0.005]
[1768742721313,0.05167302,94965.0,94946.0,0.00956553]
[1768742721719,0.010535,94964.0,94946.0,0.00956553]
[1768742722423,8.294e-05,94963.0,94947.0,0.11279517]
[1768742722625,8.294e-05,94963.0,94948.0,0.00960469]
[1768742722818,8.294e-05,94963.0,94948.0,0.12239986]
[1768742724828,8.294e-05,94963.0,94949.0,0.00960469]
[1768742726933,0.010535,94962.0,94949.0,0.00960469]
[1768742728130,0.010535,94962.0,94944.0,0.12471702]
[1768742728922,0.010535,94962.0,94945.0,0.00960469]
[1768742729626,0.00949308,94960.0,94952.0,0.24486974]
[1768742729819,0.010535,94959.0,94942.0,0.00960469]
[1768742730818,0.010535,94957.0,94942.0,0.00960469]
[1768742731727,0.010535,94957.0,94938.0,0.11279517]
[1768742731728,0.010536,94955.0,94935.0,0.00960469]
[1768742732035,0.00717869,94960.0,94935.0,0.00960469]
[1768742732434,0.00717869,94960.0,94937.0,0.00960469]
[1768742732829,0.00717869,94960.0,94938.0,0.00960469]
[1768742733533,0.010536,94955.0,94938.0,0.00960469]
[1768742735940,0.00034803,94954.0,94933.0,0.010538]
[1768742736238,0.00034803,94954.0,94934.0,0.01436872]
[1768742737240,0.010536,94952.0,94934.0,0.01436872]
[1768742738235,0.010536,94952.0,94936.0,0.12271499]
[1768742738537,0.010536,94952.0,94937.0,0.01436872]
[1768742739138,0.010536,94952.0,94938.0,0.01436872]
[1768742740241,0.010536,94955.0,94938.0,0.01436872]
[1768742740540,0.010536,94955.0,94939.0,0.01436872]
[1768742741240,0.0948,94961.0,94939.0,0.01436872]
[1768742741241,0.010535,94962.0,94950.0,0.01436872]
[1768742741442,0.02246553,94961.0,94953.0,0.01436872]
[1768742741643,8.294e-05,94963.0,94953.0,0.01436872]
[1768742741829,0.02246512,94962.0,94953.0,0.01436872]
[1768742742134,8.294e-05,94963.0,94953.0,0.01436872]
[1768742742442,0.02246802,94962.0,94953.0,0.01436872]
[1768742742742,8.294e-05,94963.0,94948.0,0.10834627]
[1768742742944,0.03300298,94962.0,94948.0,0.10834627]
[1768742743132,0.010535,94962.0,94939.0,0.10834627]
[1768742743333,0.02247152,94961.0,94939.0,0.10834627]
[1768742743633,0.010535,94962.0,94939.0,0.10834627]
[1768742743834,0.02247152,94961.0,94939.0,0.10834627]
[1768742744030,0.010535,94962.0,94939.0,0.10834627]
[1768742744235,0.02247158,94961.0,94939.0,0.10834627]
[1768742744436,0.010535,94962.0,94939.0,0.10834627]
[1768742744735,0.02247587,94961.0,94941.0,0.10834627]
[1768742744935,0.010535,94962.0,94945.0,0.12271499]
[1768742745141,0.0224759,94961.0,94945.0,0.12271499]
[1768742745341,0.0224759,94960.0,94945.0,0.12271499]
[1768742745539,0.010535,94962.0,94945.0,0.12271499]
[1768742745740,0.02248111,94961.0,94945.0,0.12271499]
[1768742745942,0.02248111,94960.0,94945.0,0.12271499]
[1768742746131,0.010535,94959.0,94945.0,0.12271499]
[1768742746336,0.02248785,94958.0,94945.0,0.12271499]
[1768742746639,8.294e-05,94963.0,94945.0,0.12271499]
[1768742746839,0.02248783,94962.0,94945.0,0.12271499]
[1768742747038,8.294e-05,94963.0,94945.0,0.12271499]
[1768742747039,0.02248783,94961.0,94945.0,0.12271499]
[1768742747244,0.02248783,94960.0,94945.0,0.12271499]
[1768742747441,0.03302283,94959.0,94945.0,0.12271499]
[1768742747644,0.02248783,94958.0,94945.0,0.12271499]
[1768742749736,0.02248783,94958.0,94946.0,0.12271499]
[1768742752142,0.02248783,94958.0,94948.0,0.10834627]
[1768742754651,0.02248783,94957.0,94948.0,0.10834627]
[1768742754848,0.02248783,94956.0,94948.0,0.10834627]
[1768742755052,0.02248783,94955.0,94948.0,0.10834627]
[1768742755252,0.02248783,94954.0,94948.0,0.10834627]
[1768742755453,0.02248783,94953.0,94949.0,0.02019423]
[1768742755653,0.02248783,94952.0,94949.0,0.02019423]
[1768742755953,0.02248783,94951.0,94949.0,0.02019423]
[1768742756154,0.010535,94962.0,94949.0,0.02019423]
[1768742756352,0.02253101,94961.0,94949.0,0.02019423]
[1768742756549,0.010535,94958.0,94949.0,0.02019423]
[1768742756856,0.02253101,94957.0,94949.0,0.02019423]
[1768742757154,0.02253101,94956.0,94949.0,0.02019423]
[1768742757343,0.02253101,94955.0,94948.0,0.10834627]
[1768742757546,0.02253101,94954.0,94948.0,0.10834627]
[1768742757750,0.02253101,94953.0,94948.0,0.1285405]
[1768742757950,0.02253101,94952.0,94949.0,0.02019423]
[1768742758255,0.02253101,94951.0,94949.0,0.02019423]
[1768742758455,0.010535,94958.0,94949.0,0.02019423]
[1768742758755,0.02253527,94957.0,94949.0,0.02019423]
[1768742758957,0.02253527,94956.0,94949.0,0.02019423]
[1768742759254,0.02253527,94955.0,94949.0,0.02019423]
[1768742759564,0.02253527,94954.0,94950.0,0.02019423]
[1768742759748,0.02253527,94953.0,94950.0,0.02019423]
[1768742759948,0.02253527,94952.0,94950.0,0.02019423]
[1768742760149,0.02253527,94951.0,94950.0,0.02019423]
[1768742760555,0.02253527,94951.0,94945.0,0.13000269]
[1768742760757,0.010535,94958.0,94947.0,0.10980846]
[1768742761147,0.09484,94960.0,94949.0,0.10980846]
[1768742761647,0.09484,94960.0,94950.0,0.2]
[1768742761847,0.09484,94960.0,94950.0,0.30980846]
[1768742762051,0.09484,94960.0,94950.0,0.2]
[1768742764155,0.09484,94960.0,94951.0,0.10980846]
[1768742764358,0.09484,94961.0,94953.0,0.10980846]
[1768742764552,0.09484,94961.0,94952.0,0.02019423]
[1768742765157,8.294e-05,94963.0,94953.0,0.10980846]
[1768742765354,0.09484,94974.0,94964.0,0.02019423]
[1768742765549,0.010533,94977.0,94965.0,0.13000269]
[1768742765750,0.010533,94977.0,94965.0,0.02019423]
[1768742770259,0.010533,94977.0,94965.0,0.13000269]
[1768742772154,0.09484,94983.0,94975.0,0.10980846]
[1768742772346,0.09484,94983.0,94975.0,0.13000269]
[1768742772846,0.02167972,94982.0,94975.0,0.13000269]
[1768742773051,0.00231618,94984.0,94975.0,0.13000269]
[1768742773257,0.09484,94987.0,94985.0,0.10980846]
[1768742773456,0.010531,95001.0,94985.0,0.00460033]
[1768742773756,0.09484,95000.0,94985.0,0.00460033]
[1768742774151,0.010531,95001.0,94985.0,0.00460033]
[1768742774450,0.02192288,95004.0,94970.0,0.00015794]
[1768742774451,0.010532,94989.0,94970.0,0.00015794]
[1768742774656,0.14844247,94987.0,94970.0,0.00015794]
[1768742774963,0.09484,94986.0,94970.0,0.00015794]
[1768742775164,0.12883528,94983.0,94970.0,0.00015794]
[1768742775363,0.13791047,94983.0,94970.0,0.00015794]
[1768742775550,0.09484,94986.0,94970.0,0.00015794]
[1768742775752,0.010532,94987.0,94970.0,0.1099664]
[1768742775957,0.09484,94986.0,94970.0,0.1099664]
[1768742776669,0.09484,94985.0,94970.0,0.1099664]
[1768742777762,0.09484,94985.0,94970.0,0.00015794]
[1768742779354,0.010532,94987.0,94970.0,0.1099664]
[1768742779564,0.09484,94984.0,94970.0,0.1099664]
[1768742781159,0.010532,94985.0,94970.0,0.1099664]
[1768742781561,0.0948,94984.0,94970.0,0.1099664]
[1768742786068,0.010532,94992.0,94976.0,0.1174409]
[1768742786263,0.11588619,94991.0,94976.0,0.14071935]
[1768742786458,0.02108619,94990.0,94976.0,0.14071935]
[1768742787970,0.02108619,94990.0,94976.0,0.1174409]
[1768742789772,0.0948,94991.0,94976.0,0.1174409]
[1768742794284,0.12407655,94991.0,94976.0,0.1174409]
[1768742795182,0.02927655,94991.0,94976.0,0.1174409]
[1768742795380,0.0948,94990.0,94976.0,0.1174409]
[1768742796666,0.010532,94989.0,94976.0,0.1174409]
[1768742801184,0.010532,94987.0,94971.0,0.10991795]
[1768742801382,0.00964392,94986.0,94971.0,0.10991795]
[1768742803376,0.010532,94985.0,94971.0,0.10991795]
[1768742817906,0.10392801,94990.0,94971.0,0.10991795]
[1768742818695,0.00912801,94989.0,94971.0,0.10991795]
[1768742819005,0.010533,94982.0,94971.0,0.10991795]
[1768742821789,0.010532,94985.0,94971.0,0.10991795]
[1768742824003,0.010532,94988.0,94971.0,0.10991795]
[1768742824411,0.010532,94991.0,94971.0,0.10991795]
[1768742824605,0.0948,94992.0,94971.0,0.10991795]
[1768742825012,0.105332,94992.0,94971.0,0.10991795]
[1768742827215,0.11446001,94992.0,94971.0,0.10991795]